bitfinex-derivatives/quotes_BTCF0:USTF0_20210108
["timestamp","ask_amount","ask_price","bid_price","bid_amount"]
[1610081099044,0.46938142,38731.0,38722.0,0.03193052]
[1610081099245,0.13632608,38723.0,38721.0,0.08672]
[1610081099845,0.13632608,38723.0,38722.0,0.03193373]
[1610081102046,0.60581665,38723.0,38722.0,0.03193373]
[1610081102448,1.54860193,38723.0,38718.0,0.03193956]
[1610081102648,0.51575547,38723.0,38722.0,0.00030544]
[1610081102849,0.13632608,38723.0,38719.0,0.03194108]
[1610081103048,3.72432608,38723.0,38719.0,0.00030544]
[1610081103249,5.82543512,38723.0,38718.0,0.00030546]
[1610081103448,1.5,38722.0,38720.0,0.00030549]
[1610081103651,0.00030546,38715.0,38713.0,0.03164025]
[1610081103849,0.09984,38715.0,38713.0,0.03164025]
[1610081104050,4.2339,38714.0,38679.0,0.06329223]
[1610081104250,1.5,38713.0,38690.0,0.06329972]
[1610081104449,1.5,38713.0,38639.0,2.78538856]
[1610081104450,1.5,38713.0,38698.0,0.03195954]
[1610081104649,0.87636805,38703.0,38698.0,0.03195954]
[1610081104850,3.1827,38699.0,38678.0,0.08779]
[1610081105050,0.01580414,38684.0,38678.0,0.08779]
[1610081105250,0.13632608,38679.0,38678.0,0.08779]
[1610081105451,0.71222608,38679.0,38678.0,0.08779]
[1610081105651,0.71222608,38679.0,38656.0,0.13632608]
[1610081105852,0.71222608,38679.0,38678.0,0.03196653]
[1610081106053,0.71222608,38679.0,38667.0,0.11031]
[1610081106453,2.12407463,38679.0,38678.0,0.03196785]
[1610081106652,2.12407463,38679.0,38668.0,0.0319697]
[1610081106852,1.74426583,38679.0,38678.0,0.03197022]
[1610081107052,1.74426583,38679.0,38657.0,0.1245]
[1610081107053,1.54820948,38679.0,38657.0,0.1245]
[1610081107252,3.42142608,38658.0,38657.0,0.1245]
[1610081107654,3.42142608,38658.0,38657.0,0.03197587]
[1610081108255,3.42142608,38658.0,38627.0,0.03198074]
[1610081108456,0.13632608,38658.0,38657.0,0.03198354]
[1610081108655,3.42282608,38658.0,38657.0,0.03167769]
[1610081108863,1.63632608,38658.0,38632.0,0.11025]
[1610081109056,1.63632608,38658.0,38657.0,0.03168165]
[1610081109257,0.13632608,38658.0,38633.0,0.03199127]
[1610081109457,0.13632608,38658.0,38657.0,0.00030595]
[1610081109857,3.77442608,38658.0,38604.0,3.4861]
[1610081110058,7.4458278,38658.0,38604.0,3.4861]
[1610081110258,0.02314891,38640.0,38605.0,0.09538947]
[1610081110461,0.13607891,38640.0,38605.0,0.09538947]
[1610081110657,0.11293,38640.0,38605.0,0.09538947]
[1610081110857,0.11293,38640.0,38600.0,0.03200231]
[1610081111057,3.9325,38627.0,38606.0,0.03200189]
[1610081111261,0.13632608,38607.0,38606.0,0.03200189]
[1610081111460,3.9325,38627.0,38601.0,0.16832875]
[1610081111660,3.9325,38627.0,38606.0,0.03200445]
[1610081111857,3.9325,38627.0,38602.0,0.03200238]
[1610081112258,3.9325,38627.0,38607.0,0.03200222]
[1610081112459,3.9325,38627.0,38607.0,0.1251]
[1610081112658,3.9325,38627.0,38608.0,0.03200181]
[1610081113260,0.13632608,38609.0,38608.0,0.16832789]
[1610081113459,3.9325,38627.0,38608.0,0.16832789]
[1610081113659,0.10059,38632.0,38608.0,0.16832789]
[1610081114060,0.10059,38632.0,38609.0,0.03199884]
[1610081114459,4.0943,38652.0,38609.0,0.03199884]
[1610081115059,4.0943,38652.0,38609.0,0.03169284]
[1610081115260,4.0943,38652.0,38642.0,0.13632608]
[1610081115459,0.2814,38663.0,38642.0,0.13632608]
[1610081115460,0.00770454,38664.0,38642.0,0.13632608]
[1610081115660,4.0441,38665.0,38642.0,0.13632608]
[1610081115859,4.0441,38665.0,38643.0,0.00030591]
[1610081116461,4.06700622,38665.0,38643.0,0.00030591]
[1610081116661,4.06700622,38665.0,38635.0,0.00030591]
[1610081116860,0.00768111,38660.0,38644.0,0.00030593]
[1610081117261,0.13632608,38645.0,38636.0,0.00030593]
[1610081117461,0.23999608,38645.0,38626.0,0.10424]
[1610081117660,0.23999608,38645.0,38637.0,0.00030595]
[1610081117861,0.23999608,38645.0,38627.0,0.00030595]
[1610081119263,0.13632608,38628.0,38627.0,0.00030595]
[1610081121164,0.10367,38645.0,38627.0,0.00030595]
[1610081121364,0.13632608,38632.0,38627.0,0.13663203]
[1610081121866,0.10367,38645.0,38628.0,0.00030319]
[1610081122067,0.11769,38653.0,38628.0,0.00030319]
[1610081122565,0.11769,38653.0,38628.0,0.0319863]
[1610081123365,0.13632608,38631.0,38628.0,0.0319863]
[1610081123564,0.13632608,38631.0,38628.0,0.00030319]
[1610081123765,0.13632608,38631.0,38629.0,0.00030319]
[1610081124367,0.13632608,38631.0,38628.0,0.00030319]
[1610081124566,0.13632608,38631.0,38630.0,0.00030319]
[1610081124765,0.13632608,38631.0,38629.0,0.00030319]
[1610081125166,0.13632608,38631.0,38627.0,0.0319906]
[1610081125366,0.13632608,38631.0,38630.0,0.00030322]
[1610081125668,0.13632608,38631.0,38626.0,0.10424]
[1610081125669,0.13632608,38631.0,38628.0,0.00030325]
[1610081125868,0.13632608,38631.0,38630.0,0.00030325]
[1610081126067,0.13632608,38631.0,38629.0,0.00030325]
[1610081126467,0.13632608,38631.0,38627.0,0.00030325]
[1610081126667,0.13632608,38631.0,38630.0,0.00030325]
[1610081126869,0.11227,38645.0,38628.0,0.00030327]
[1610081127069,0.0076696,38652.0,38628.0,0.00030327]
[1610081127269,0.0076696,38652.0,38626.0,0.10424]
[1610081127270,0.00766376,38655.0,38651.0,0.13632608]
[1610081127470,0.07080077,38656.0,38651.0,0.22888608]
[1610081127671,0.45473393,38691.0,38667.0,3.2167]
[1610081127869,0.45473393,38691.0,38667.0,3.33494]
[1610081128071,0.54671875,38705.0,38667.0,3.33494]
[1610081128271,0.85036704,38717.0,38667.0,3.33494]
[1610081128272,0.54815673,38714.0,38668.0,0.09527798]
[1610081128673,0.54932596,38725.0,38686.0,3.9239]
[1610081128872,0.54932596,38725.0,38686.0,4.02952]
[1610081129073,0.54932596,38725.0,38687.0,0.09522511]
[1610081129273,0.54932596,38725.0,38724.0,0.13632608]
[1610081129476,0.13632608,38726.0,38724.0,0.13632608]
[1610081129875,0.13632608,38726.0,38725.0,0.00030273]
[1610081130275,0.13632608,38726.0,38725.0,0.11294273]
[1610081130476,0.55225252,38748.0,38725.0,0.11294273]
[1610081130676,0.55225252,38748.0,38725.0,0.64457528]
[1610081130877,0.55243885,38751.0,38726.0,0.03193268]
[1610081131277,0.57179708,38755.0,38744.0,0.13632608]
[1610081131678,0.57179708,38755.0,38745.0,0.00030267]
[1610081131878,0.57179708,38755.0,38744.0,0.13632608]
[1610081131879,0.01936721,38755.0,38744.0,0.13474543]
[1610081132880,0.01936721,38755.0,38745.0,0.5]
[1610081133281,0.01936721,38755.0,38746.0,0.00030264]
[1610081133981,0.01936721,38755.0,38746.0,0.50030264]
[1610081134380,0.01936721,38755.0,38747.0,0.50030264]
[1610081134780,0.01936721,38755.0,38748.0,0.00030262]
[1610081135582,0.01936721,38755.0,38749.0,0.5]
[1610081135982,0.01936721,38755.0,38747.0,0.50030262]
[1610081136181,0.01936721,38755.0,38750.0,0.00030262]
[1610081136381,0.01936721,38755.0,38747.0,0.5]
[1610081136382,0.01936721,38755.0,38748.0,0.00030262]
[1610081137384,0.13632608,38749.0,38748.0,0.00030262]
[1610081137783,0.13632608,38749.0,38747.0,0.00030262]
[1610081137985,0.13632608,38749.0,38748.0,0.00030262]
[1610081138185,0.13632608,38749.0,38746.0,0.08288]
[1610081138386,0.13632608,38749.0,38738.0,0.11664]
[1610081138587,0.13632608,38749.0,38716.0,3.3068]
[1610081138985,0.13632608,38749.0,38726.0,0.00030262]
[1610081139187,0.13632608,38749.0,38726.0,0.13185262]
[1610081139387,0.01936721,38755.0,38741.0,0.13632608]
[1610081139989,0.01936721,38755.0,38750.0,0.5]
[1610081141293,0.01936721,38755.0,38754.0,0.13632608]
[1610081141692,0.01936721,38755.0,38750.0,0.5]
[1610081142092,0.01936721,38755.0,38750.0,0.49841974]
[1610081143294,0.01936721,38755.0,38738.0,0.10088]
[1610081143295,0.13632608,38751.0,38748.0,0.5]
[1610081143694,0.13632608,38751.0,38742.0,0.13632608]
[1610081144094,0.13632608,38751.0,38749.0,0.5]
[1610081144896,0.13632608,38751.0,38748.0,0.5]
[1610081145095,0.13632608,38751.0,38750.0,0.5]
[1610081145296,0.13632608,38751.0,38750.0,0.63632608]
[1610081145695,0.13632608,38751.0,38750.0,0.13632608]
[1610081145895,0.13632608,38751.0,38738.0,0.10088]
[1610081146096,0.13632608,38751.0,38750.0,0.5]
[1610081146297,0.13632608,38751.0,38740.0,0.10233]
[1610081146696,0.13632608,38751.0,38750.0,0.5]
[1610081147297,0.13632608,38751.0,38741.0,0.13632608]
[1610081147498,0.13632608,38751.0,38741.0,0.63632608]
[1610081147696,0.13632608,38751.0,38750.0,0.5]
[1610081147896,0.13632608,38751.0,38740.0,0.10233]
[1610081148097,0.13632608,38751.0,38741.0,0.5]
[1610081148299,0.13632608,38751.0,38750.0,0.5]
[1610081148699,0.13632608,38751.0,38742.0,0.5]
[1610081148899,0.13632608,38751.0,38750.0,0.5]
[1610081149299,0.13632608,38751.0,38750.0,0.13632608]
[1610081149501,0.13632608,38751.0,38750.0,0.63632608]
[1610081149700,0.13632608,38751.0,38750.0,0.5]
[1610081151101,0.13632608,38751.0,38750.0,0.42098271]
[1610081151501,0.66402608,38751.0,38750.0,0.42098271]
[1610081151702,0.66402608,38751.0,38750.0,0.26294116]
[1610081151902,0.66402608,38751.0,38702.0,3.6519]
[1610081152102,0.75295608,38751.0,38702.0,3.6519]
[1610081152501,0.75295608,38751.0,38703.0,0.00030259]
[1610081153503,0.61663,38751.0,38720.0,0.13632608]
[1610081153704,0.61663,38751.0,38706.0,0.10747]
[1610081154105,0.61663,38751.0,38707.0,0.00030259]
[1610081154306,0.61663,38751.0,38750.0,0.5]
[1610081155105,0.61663,38751.0,38750.0,0.50030259]
[1610081155308,0.75295608,38751.0,38750.0,0.50030259]
[1610081155705,0.75295608,38751.0,38750.0,0.49872225]
[1610081155906,0.22525608,38751.0,38750.0,0.49872225]
[1610081156708,0.45296069,38751.0,38750.0,0.49872225]
[1610081157508,0.45296069,38751.0,38750.0,0.53033684]
[1610081166015,0.45296069,38751.0,38750.0,0.52875701]
[1610081168717,0.90206069,38751.0,38750.0,0.52875701]
[1610081169919,0.90206069,38751.0,38750.0,0.44974814]
[1610081170519,0.45296069,38751.0,38750.0,0.44974814]
[1610081173521,0.45296069,38751.0,38750.0,0.58607422]
[1610081174320,0.45296069,38751.0,38750.0,0.44974814]
[1610081175422,0.45296069,38751.0,38750.0,0.03191718]
[1610081175821,0.45296069,38751.0,38750.0,0.03161459]
[1610081176022,0.45296069,38751.0,38744.0,0.03191254]
[1610081176223,0.45296069,38751.0,38750.0,0.03191247]
[1610081176424,0.45296069,38751.0,38745.0,0.03191352]
[1610081176627,0.45296069,38751.0,38750.0,0.03191333]
[1610081176921,0.45296069,38751.0,38743.0,0.09668]
[1610081176922,0.45296069,38751.0,38744.0,0.03191191]
[1610081177321,0.45296069,38751.0,38750.0,0.03160775]
[1610081177522,0.45296069,38751.0,38749.0,0.13632608]
[1610081177721,0.45296069,38751.0,38750.0,0.03160767]
[1610081178121,0.45296069,38751.0,38750.0,0.03191012]
[1610081179121,0.45296069,38751.0,38744.0,0.03190793]
[1610081179323,0.45296069,38751.0,38750.0,0.0319076]
[1610081179524,0.45296069,38751.0,38750.0,0.00030245]
[1610081180124,0.45296069,38751.0,38743.0,0.09668]
[1610081180324,0.45296069,38751.0,38742.0,0.13632608]
[1610081180724,0.45296069,38751.0,38743.0,0.03190875]
[1610081181124,0.45296069,38751.0,38742.0,0.1286]
[1610081181524,0.31663461,38751.0,38744.0,0.03191]
[1610081181726,0.31663461,38751.0,38743.0,0.03191048]
[1610081181925,0.31663461,38751.0,38745.0,0.03191121]
[1610081182323,0.31663461,38751.0,38742.0,0.1286]
[1610081182324,0.31663461,38751.0,38744.0,0.03191061]
[1610081182524,0.31663461,38751.0,38742.0,0.1286]
[1610081182525,0.31663461,38751.0,38746.0,0.03191094]
[1610081182725,0.31663461,38751.0,38745.0,0.03194219]
[1610081183124,0.31663461,38751.0,38747.0,0.03194144]
[1610081183324,0.22770461,38751.0,38746.0,0.03194132]
[1610081183524,0.13632608,38747.0,38742.0,0.1286]
[1610081183926,0.13632608,38747.0,38743.0,0.03194199]
[1610081184124,0.22770461,38751.0,38743.0,0.03194199]
[1610081185525,0.22770461,38751.0,38745.0,0.13632608]
[1610081185725,0.22770461,38751.0,38743.0,0.03194199]
[1610081185926,0.22770461,38751.0,38746.0,0.03193798]
[1610081186326,0.22770461,38751.0,38744.0,0.03193806]
[1610081186528,0.22770461,38751.0,38747.0,0.03194033]
[1610081186728,0.46932061,38748.0,38745.0,0.03194029]
[1610081187030,0.46932061,38748.0,38742.0,0.1286]
[1610081187230,0.46932061,38748.0,38746.0,0.03194025]
[1610081187430,0.94229378,38750.0,38746.0,0.03194025]
[1610081187431,0.13632608,38747.0,38746.0,0.03194025]
[1610081187632,0.13632608,38747.0,38743.0,0.03194149]
[1610081187829,0.7013405,38747.0,38746.0,0.03194093]
[1610081188030,0.7013405,38747.0,38746.0,0.13365]
[1610081188333,1.55134375,38747.0,38746.0,0.16559055]
[1610081188530,1.55134375,38747.0,38746.0,0.16559063]
[1610081190833,1.17221205,38747.0,38746.0,0.16559063]
[1610081191336,0.60719763,38747.0,38746.0,0.16559063]
[1610081192537,0.13632608,38747.0,38746.0,0.16559063]
[1610081193340,0.60819149,38747.0,38746.0,0.16559063]
[1610081193538,0.60819149,38747.0,38746.0,0.66559063]
[1610081193739,0.13632608,38747.0,38746.0,0.66559063]
[1610081194138,0.13632608,38747.0,38746.0,0.72879737]
[1610081195540,0.69943643,38751.0,38746.0,0.72879737]
[1610081195740,0.47173293,38750.0,38746.0,0.72879737]
[1610081195940,0.47173293,38750.0,38747.0,0.53193645]
[1610081196141,0.47173293,38750.0,38747.0,0.59514167]
[1610081196341,0.47173293,38750.0,38748.0,0.5]
[1610081196541,0.47173293,38750.0,38748.0,0.53193589]
[1610081196741,0.47173293,38750.0,38749.0,0.031936]
[1610081196942,0.47173293,38750.0,38749.0,0.531936]
[1610081198244,1.0376581,38750.0,38749.0,0.531936]
[1610081198644,1.4167382,38750.0,38749.0,0.531936]
[1610081199045,2.10834747,38750.0,38749.0,0.531936]
[1610081199449,1.4167382,38750.0,38749.0,0.531936]
[1610081199846,2.10839995,38750.0,38749.0,0.531936]
[1610081207247,1.72931985,38750.0,38749.0,0.531936]
[1610081207650,2.10846777,38750.0,38749.0,0.531936]
[1610081208850,1.41680602,38750.0,38749.0,0.531936]
[1610081209350,2.10846823,38750.0,38749.0,0.531936]
[1610081211353,2.89449172,38750.0,38749.0,0.531936]
[1610081212554,3.77522822,38750.0,38749.0,0.531936]
[1610081212956,3.3960803,38750.0,38749.0,0.531936]
[1610081213555,3.3960803,38750.0,38749.0,0.49842002]
[1610081213556,3.77527635,38750.0,38749.0,0.49842002]
[1610081217257,4.87731543,38750.0,38749.0,0.49842002]
[1610081218660,3.77527635,38750.0,38749.0,0.49842002]
[1610081219060,4.34410577,38750.0,38749.0,0.49842002]
[1610081220261,3.77527635,38750.0,38749.0,0.49842002]
[1610081220663,2.89453985,38750.0,38749.0,0.49842002]
[1610081223066,2.89453985,38750.0,38749.0,0.61807002]
[1610081223468,3.46933985,38750.0,38749.0,0.61807002]
[1610081224068,4.35076232,38750.0,38749.0,0.61807002]
[1610081224971,3.77596232,38750.0,38749.0,0.61807002]
[1610081226676,2.89453985,38750.0,38749.0,0.61807002]
[1610081227074,3.77588851,38750.0,38749.0,0.61807002]
[1610081227274,4.26938851,38750.0,38749.0,0.61807002]
[1610081230880,3.77588851,38750.0,38749.0,0.61807002]
[1610081231082,2.89453985,38750.0,38749.0,0.61807002]
[1610081231483,2.10851636,38750.0,38749.0,0.61807002]
[1610081231680,2.10851636,38750.0,38749.0,0.7543961]
[1610081232281,1.41685415,38750.0,38749.0,0.81760632]
[1610081232484,1.41685415,38750.0,38749.0,0.7543961]
[1610081232684,1.41685415,38750.0,38749.0,0.81760372]
[1610081233082,0.69991123,38751.0,38749.0,0.81760372]
[1610081233483,0.22770461,38751.0,38750.0,0.09513697]
[1610081234783,0.22770461,38751.0,38750.0,0.59513697]
[1610081235984,0.47172958,38759.0,38750.0,0.59513697]
[1610081236384,0.47160003,38760.0,38751.0,0.03192959]
[1610081236585,0.47160003,38760.0,38751.0,0.53192959]
[1610081236986,0.47160003,38760.0,38752.0,0.53192971]
[1610081237185,0.47159956,38759.0,38752.0,0.53192971]
[1610081237384,0.47159956,38759.0,38752.0,0.03192971]
[1610081237585,0.47146128,38760.0,38753.0,0.53193]
[1610081237788,0.47146128,38760.0,38759.0,0.13632608]
[1610081238189,0.47146128,38760.0,38759.0,0.24106608]
[1610081238387,0.47146128,38760.0,38759.0,0.2729956]
[1610081238587,0.47132791,38761.0,38759.0,0.2729956]
[1610081238788,0.47132933,38760.0,38759.0,0.7729956]
[1610081238987,0.47132933,38760.0,38759.0,0.24106608]
[1610081239387,0.47132933,38760.0,38759.0,0.27299537]
[1610081239587,0.47132933,38760.0,38759.0,0.77299537]
[1610081240087,0.47132933,38760.0,38759.0,0.83618855]
[1610081241890,0.47106508,38761.0,38759.0,0.83618855]
[1610081242290,0.47106058,38760.0,38759.0,0.69986247]
[1610081242490,0.47106058,38760.0,38759.0,0.60474]
[1610081242690,0.47106058,38760.0,38759.0,0.19986344]
[1610081242992,1.03624131,38760.0,38759.0,0.13666994]
[1610081243690,1.03624131,38760.0,38759.0,0.27299602]
[1610081244292,0.47106058,38760.0,38759.0,0.27299602]
[1610081245093,0.4708738,38761.0,38759.0,0.27299602]
[1610081245391,0.4708738,38761.0,38760.0,0.5]
[1610081245593,0.4708738,38761.0,38760.0,0.53193453]
[1610081245994,0.47079685,38762.0,38760.0,0.59512797]
[1610081246396,0.47079685,38762.0,38761.0,0.03193439]
[1610081246797,1.03563073,38762.0,38761.0,0.03193439]
[1610081246995,1.03563073,38762.0,38760.0,0.09512795]
[1610081247196,0.6903426,38764.0,38761.0,0.03193507]
[1610081247595,1.03553991,38762.0,38759.0,0.74106608]
[1610081247796,1.03553991,38762.0,38760.0,0.56319649]
[1610081247995,0.69029996,38763.0,38760.0,0.59513257]
[1610081248195,0.69029996,38763.0,38761.0,0.03193569]
[1610081248397,0.56475271,38762.0,38761.0,0.03193569]
[1610081248797,0.47067033,38762.0,38761.0,0.03193569]
[1610081249199,1.4144574,38762.0,38761.0,0.03193569]
[1610081249600,1.03543667,38762.0,38761.0,0.03193569]
[1610081250399,1.03543667,38762.0,38761.0,0.53193569]
[1610081252304,1.06909608,38765.0,38761.0,0.53193569]
[1610081252604,1.03510525,38762.0,38761.0,0.53193569]
[1610081252805,1.03510525,38762.0,38760.0,0.06319649]
[1610081253004,1.06909608,38765.0,38761.0,0.03193545]
[1610081253203,1.06909608,38765.0,38760.0,0.03193507]
[1610081253406,0.68995229,38764.0,38762.0,0.5]
[1610081253605,0.68995229,38764.0,38762.0,0.531935]
[1610081253806,0.68995229,38764.0,38763.0,0.03193661]
[1610081254207,1.16311342,38765.0,38763.0,0.03193661]
[1610081254605,2.50927926,38764.0,38763.0,0.03193661]
[1610081256510,1.72516869,38764.0,38763.0,0.03193661]
[1610081257810,1.72516869,38764.0,38761.0,0.5]
[1610081258010,1.72516869,38764.0,38763.0,0.03193628]
[1610081258210,1.72516869,38764.0,38762.0,0.53193614]
[1610081258411,0.37902028,38765.0,38762.0,0.53193614]
[1610081258412,0.68992622,38763.0,38762.0,0.5]
[1610081258811,2.10395268,38763.0,38762.0,0.53193786]
[1610081259212,1.03498034,38763.0,38762.0,0.53193786]
[1610081259514,1.81899643,38763.0,38762.0,0.03193786]
[1610081260311,2.42759643,38763.0,38762.0,0.03193786]
[1610081261511,3.30575584,38763.0,38761.0,0.49842046]
[1610081261911,0.13632608,38762.0,38761.0,0.49842046]
[1610081262113,3.52374417,38762.0,38761.0,0.49842046]
[1610081262313,3.90284935,38762.0,38761.0,0.49842046]
[1610081262513,3.90284935,38762.0,38761.0,0.53036208]
[1610081263313,2.8677309,38762.0,38761.0,0.53036208]
[1610081263514,3.90288461,38762.0,38761.0,0.49842046]
[1610081263713,3.90288461,38762.0,38761.0,0.53036281]
[1610081269021,3.90288461,38762.0,38761.0,0.03194235]
[1610081269421,3.90288461,38762.0,38761.0,0.03160451]
[1610081269621,3.90288461,38762.0,38750.0,0.03194362]
[1610081269823,7.71715853,38762.0,38761.0,0.03194362]
[1610081270024,5.04831755,38762.0,38751.0,0.03194365]
[1610081270223,5.04831755,38762.0,38761.0,0.03194368]
[1610081270623,5.04831755,38762.0,38750.0,0.03194396]
[1610081270823,2.50932088,38751.0,38749.0,0.11965]
[1610081271224,2.50932088,38751.0,38731.0,0.06321168]
[1610081271423,2.50932088,38751.0,38750.0,0.03194441]
[1610081271624,2.50927938,38750.0,38733.0,0.0319445]
[1610081271824,2.50927938,38750.0,38741.0,0.13632608]
[1610081272023,0.4705275,38742.0,38741.0,0.21920608]
[1610081272425,0.4705275,38742.0,38741.0,0.25114994]
[1610081273925,0.60685358,38742.0,38741.0,0.25114994]
[1610081274928,1.17157342,38742.0,38741.0,0.25114994]
[1610081275129,0.13632608,38742.0,38741.0,0.25114994]
[1610081275729,1.55086634,38742.0,38741.0,0.25114994]
[1610081275929,1.55086634,38742.0,38741.0,0.21920608]
[1610081276129,2.16356634,38742.0,38741.0,0.25115182]
[1610081276329,2.16356634,38742.0,38741.0,0.14677116]
[1610081276529,2.85381188,38742.0,38741.0,0.14677116]
[1610081276929,4.35381188,38742.0,38741.0,0.03194574]
[1610081277129,5.13830621,38742.0,38741.0,0.06389436]
[1610081277329,5.13830621,38742.0,38741.0,0.03194574]
[1610081277531,6.01690144,38742.0,38729.0,0.09442]
[1610081277729,5.40420144,38742.0,38729.0,0.09442]
[1610081277930,5.26787536,38742.0,38730.0,0.0319589]
[1610081278331,0.87884342,38735.0,38730.0,0.0319589]
[1610081278530,3.6775,38731.0,38730.0,0.0319589]
[1610081278731,7.6878881,38731.0,38721.0,0.03196433]
[1610081278930,7.6878881,38731.0,38730.0,0.03196516]
[1610081279132,9.51508508,38731.0,38730.0,0.03196516]
[1610081279330,8.01508508,38731.0,38722.0,0.03196681]
[1610081279530,9.11262249,38731.0,38730.0,0.03196917]
[1610081279730,9.11262249,38731.0,38723.0,0.03196977]
[1610081279929,0.13632608,38724.0,38723.0,0.03196977]
[1610081280133,0.13632608,38724.0,38712.0,0.08323]
[1610081280330,3.90289006,38724.0,38723.0,0.03197101]
[1610081280532,3.90289006,38724.0,38721.0,0.03197012]
[1610081280734,3.0248008,38724.0,38721.0,0.03197012]
[1610081280932,3.0248008,38724.0,38723.0,0.03196921]
[1610081281132,4.00303525,38723.0,38722.0,0.0319678]
[1610081281331,4.00303525,38723.0,38712.0,0.08323]
[1610081281533,5.72574551,38723.0,38712.0,0.08323]
[1610081281933,0.13632608,38715.0,38713.0,0.03196729]
[1610081282333,0.15213936,38715.0,38713.0,0.03196729]
[1610081282734,0.62175872,38715.0,38713.0,0.03196729]
[1610081283135,0.469635,38714.0,38713.0,0.03196729]
[1610081283333,0.13632608,38715.0,38713.0,0.03196729]
[1610081283533,0.46938236,38714.0,38713.0,0.03196729]
[1610081283934,1.0326177,38714.0,38713.0,0.03196729]
[1610081284334,1.4121138,38714.0,38713.0,0.03196729]
[1610081284736,1.4121138,38714.0,38695.0,0.13632608]
[1610081284737,1.72062948,38714.0,38695.0,0.13632608]
[1610081284936,1.72062948,38714.0,38649.0,0.06327305]
[1610081285135,2.50251474,38714.0,38713.0,0.03197934]
[1610081285335,2.50251474,38714.0,38713.0,0.03164111]
[1610081285535,2.50251474,38714.0,38713.0,0.03197936]
[1610081285536,3.75688042,38714.0,38713.0,0.03197936]
[1610081285934,3.75688042,38714.0,38690.0,0.12846]
[1610081286135,2.03625094,38714.0,38690.0,0.12846]
[1610081286336,0.01577795,38694.0,38691.0,0.03198918]
[1610081286535,0.01577795,38694.0,38691.0,0.06364266]
[1610081286738,0.48404881,38693.0,38691.0,0.06364266]
[1610081287136,0.78037657,38702.0,38691.0,0.06364266]
[1610081287137,0.56191412,38694.0,38692.0,0.03199159]
[1610081287537,0.46772651,38693.0,38692.0,0.03199159]
[1610081287938,0.15206758,38693.0,38692.0,0.03199159]
[1610081288538,0.13632608,38693.0,38692.0,0.03199159]
[1610081289440,0.13632608,38693.0,38692.0,0.00033836]
[1610081289842,0.13632608,38693.0,38691.0,0.03165085]
[1610081290043,0.13632608,38693.0,38692.0,0.00033836]
[1610081290446,0.15203735,38693.0,38692.0,0.00033836]
[1610081290847,0.13632608,38693.0,38692.0,0.00033836]
[1610081292048,0.13632608,38693.0,38692.0,0.1683132]
[1610081292448,0.13632608,38693.0,38692.0,0.13632608]
[1610081292647,0.13632608,38693.0,38692.0,0.16797361]
[1610081293249,0.13632608,38693.0,38692.0,0.03164753]
[1610081294649,0.13632608,38693.0,38691.0,0.03165085]
[1610081296650,0.13632608,38693.0,38692.0,0.03165239]
[1610081298651,0.13632608,38693.0,38692.0,0.53165239]
[1610081306461,0.13632608,38693.0,38692.0,0.498418]
[1610081309767,0.14422157,38693.0,38692.0,0.498418]
[1610081310166,0.13632608,38693.0,38692.0,0.498418]
[1610081312971,0.14422463,38693.0,38692.0,0.498418]
[1610081313370,0.15197179,38693.0,38692.0,0.498418]
[1610081313773,0.15987229,38693.0,38692.0,0.498418]
[1610081314172,0.14422658,38693.0,38692.0,0.498418]
[1610081314573,0.13632608,38693.0,38692.0,0.498418]
[1610081314975,3.91022608,38693.0,38692.0,0.498418]
[1610081315373,3.91812822,38693.0,38692.0,0.498418]
[1610081315775,3.91812822,38693.0,38692.0,0.364518]
[1610081315974,3.91812822,38693.0,38692.0,0.183118]
[1610081316177,5.40222913,38693.0,38692.0,0.183118]
[1610081316575,7.42972248,38693.0,38692.0,0.10397715]
[1610081316775,6.8599084,38693.0,38667.0,0.08899]
[1610081316975,8.29833784,38693.0,38667.0,0.08899]
[1610081317375,0.4947,38673.0,38668.0,0.03200754]
[1610081317875,0.01566295,38674.0,38668.0,0.03200754]
[1610081318076,3.24622608,38669.0,38668.0,0.03200754]
[1610081318677,0.13632608,38669.0,38668.0,0.03200754]
[1610081319475,3.61672608,38669.0,38668.0,0.03200754]
[1610081320081,3.6323917,38669.0,38668.0,0.03200754]
[1610081320282,3.6323917,38669.0,38646.0,0.03201032]
[1610081320483,3.6323917,38669.0,38634.0,0.15837357]
[1610081320484,3.61672608,38669.0,38668.0,0.03201353]
[1610081320680,0.13632608,38669.0,38656.0,0.11342]
[1610081320880,1.54033065,38669.0,38656.0,0.11342]
[1610081321080,1.54033065,38669.0,38668.0,0.03201114]
[1610081321284,1.54033065,38669.0,38656.0,0.11342]
[1610081321285,0.13632608,38669.0,38664.0,0.13706]
[1610081321482,0.13632608,38669.0,38668.0,0.0320086]
[1610081321682,0.13632608,38669.0,38665.0,0.03200545]
[1610081322082,0.13632608,38669.0,38665.0,0.16833153]
[1610081322485,0.13632608,38669.0,38666.0,0.03200194]
[1610081323483,0.01566243,38682.0,38666.0,0.03200194]
[1610081323684,0.01566624,38683.0,38666.0,0.03200194]
[1610081324084,0.01566612,38684.0,38676.0,0.13632608]
[1610081324283,0.01566612,38684.0,38676.0,0.23900608]
[1610081324684,0.01566612,38684.0,38677.0,0.03199578]
[1610081325385,0.01567705,38685.0,38677.0,0.03199578]
[1610081325785,3.9661,38686.0,38677.0,0.03199578]
[1610081325985,0.13632608,38678.0,38677.0,0.03199578]
[1610081328089,0.1520184,38678.0,38677.0,0.03199578]
[1610081328486,0.1520184,38678.0,38677.0,0.03166042]
[1610081328687,0.6027921,38678.0,38665.0,0.03199858]
[1610081328889,0.6027921,38678.0,38677.0,0.0319994]
[1610081329090,0.6027921,38678.0,38666.0,0.03199922]
[1610081329287,1.1625257,38678.0,38677.0,0.03199922]
[1610081329689,0.48239954,38676.0,38667.0,0.03199938]
[1610081329887,0.48239954,38676.0,38664.0,0.13706]
[1610081330087,0.13632608,38665.0,38657.0,0.13632608]
[1610081330691,0.13632608,38665.0,38658.0,0.0320045]
[1610081332191,0.13632608,38659.0,38658.0,0.0320045]
[1610081332991,0.13632608,38659.0,38658.0,0.5320045]
[1610081334792,0.13632608,38659.0,38658.0,0.5]
[1610081335194,0.13632608,38659.0,38658.0,0.53200108]
[1610081335395,0.13632608,38659.0,38658.0,0.56400214]
[1610081335595,0.13632608,38659.0,38658.0,0.59600281]
[1610081337997,0.13632608,38659.0,38658.0,0.65933664]
[1610081339501,0.13632608,38659.0,38658.0,0.59600281]
[1610081340101,0.13632608,38669.0,38658.0,0.73232889]
[1610081340700,0.13632608,38669.0,38659.0,0.09533984]
[1610081341099,0.5297,38665.0,38659.0,0.09533984]
[1610081342104,0.0158245,38672.0,38664.0,0.13632608]
[1610081342503,0.0158245,38672.0,38665.0,0.03200284]
[1610081342705,0.48603213,38673.0,38665.0,0.03200284]
[1610081342902,0.48603213,38673.0,38666.0,3.9554]
[1610081343302,0.48644502,38676.0,38667.0,0.19032499]
[1610081343703,0.69014975,38681.0,38667.0,0.19032499]
[1610081343704,0.01584642,38681.0,38667.0,0.19032499]